bitfinex/quotes_ETHUSD_20241212
["timestamp","ask_amount","ask_price","bid_price","bid_amount"]
[1734034254337,2.60878887,3881.2,3880.0,2.31958]
[1734034254540,0.7155,3881.1,3880.0,2.31958]
[1734034254737,0.7155,3881.1,3880.1,0.28334833]
[1734034255346,2.60858086,3881.5,3879.5,2.31983]
[1734034255347,2.57692,3880.6,3879.5,2.31983]
[1734034255538,0.7155,3880.5,3879.2,0.8192]
[1734034255742,0.7155,3880.5,3879.6,2.31981]
[1734034256239,0.7155,3880.5,3879.5,2.31986]
[1734034256437,0.7155,3880.5,3879.6,2.31982]
[1734034256656,0.7155,3880.5,3879.7,0.231982]
[1734034257670,0.7155,3880.5,3879.2,1.32754145]
[1734034257671,0.7155,3880.5,3880.0,2.31956]
[1734034257866,0.7155,3880.5,3879.8,2.31969]
[1734034258726,0.7155,3880.5,3879.6,2.3198]
[1734034259005,0.7155,3880.5,3879.3,3.0]
[1734034259006,2.57711,3880.4,3879.3,3.0]
[1734034259217,0.0322151,3880.4,3879.4,0.66475815]
[1734034259365,0.7155,3880.5,3879.6,2.31982]
[1734034259770,0.7155,3880.5,3879.3,5.31995]
[1734034259771,0.03221601,3880.4,3879.3,5.31995]
[1734034259971,0.03221601,3880.4,3879.4,2.31992]
[1734034260520,0.03221601,3880.4,3878.9,2.32019]
[1734034260521,0.7155,3880.0,3878.9,2.32018]
[1734034260809,0.03221942,3879.9,3879.1,3.0]
[1734034261304,0.7155,3880.0,3879.0,0.613938]
[1734034261479,0.7155,3880.0,3879.6,2.31981]
[1734034262098,0.7155,3880.0,3879.2,0.7584]
[1734034262296,0.7155,3880.0,3879.8,2.3197]
[1734034262481,0.7155,3880.8,3879.9,2.31961]
[1734034263066,0.7155,3880.8,3879.6,2.3198]
[1734034263271,2.5768,3880.8,3879.6,0.41059423]
[1734034263508,0.7155,3880.7,3879.3,2.32]
[1734034263677,0.03221519,3880.6,3879.4,5.22434356]
[1734034263876,0.7155,3880.7,3879.6,2.31976]
[1734034264072,0.7155,3880.7,3879.7,2.31974]
[1734034264275,2.57693,3880.6,3879.5,2.31986]
[1734034264499,0.7155,3880.7,3879.3,3.0]
[1734034264500,3.29236,3880.7,3879.7,3.0]
[1734034264697,0.7155,3880.7,3879.6,3.531986]
[1734034264891,2.57695,3880.6,3879.6,3.531986]
[1734034265444,0.03221522,3880.6,3879.7,2.31976]
[1734034265654,0.7155,3880.7,3879.7,2.31976]
[1734034265799,3.29235,3880.7,3879.8,0.231976]
[1734034265995,0.7155,3880.3,3879.3,5.31998]
[1734034266314,3.32485802,3880.3,3879.3,2.31998]
[1734034266518,0.74771802,3880.3,3879.0,3.0]
[1734034266715,0.74771802,3880.3,3878.9,4.73523457]
[1734034266716,0.7155,3879.8,3878.9,5.32024]
[1734034266892,0.7155,3879.8,3878.9,2.32024]
[1734034267097,0.7155,3879.8,3879.0,0.532024]
[1734034267396,0.7155,3879.8,3878.9,2.32019]
[1734034267600,0.7155,3879.8,3878.7,2.32036]
[1734034267900,0.7155,3879.8,3879.3,2.31997]
[1734034268303,0.7155,3879.8,3879.1,2.32011]
[1734034268732,0.7155,3879.8,3878.7,3.0]
[1734034268897,0.7155,3879.8,3878.9,2.32023]
[1734034269098,0.7155,3879.8,3878.9,5.32023]
[1734034269298,0.7155,3879.8,3879.0,2.32018]
[1734034269728,0.7155,3879.8,3878.9,3.0]
[1734034269935,2.57759,3879.6,3878.6,3.0]
[1734034270244,0.7155,3879.4,3878.4,2.32054]
[1734034270731,3.0357937,3880.2,3878.9,2.32019]
[1734034270732,0.7155,3879.8,3878.9,2.32019]
[1734034270954,0.7155,3879.8,3878.6,2.4857937]
[1734034271236,0.7155,3879.8,3879.1,2.32012]
[1734034271530,0.7155,3879.8,3879.2,2.32001]
[1734034271696,0.7155,3879.8,3879.1,2.32009]
[1734034271896,0.7155,3879.8,3879.2,0.232009]
[1734034272361,0.7155,3879.8,3878.7,3.0]
[1734034272563,0.7155,3879.8,3878.9,2.32024]
[1734034272730,0.7155,3879.8,3879.0,2.32016]
[1734034273666,2.57702,3880.5,3878.7,3.0]
[1734034273667,0.7155,3880.7,3879.4,2.4857937]
[1734034273865,0.7155,3880.7,3878.9,4.0755639]
[1734034273866,0.7155,3880.7,3879.8,2.4857937]
[1734034274077,0.7155,3880.7,3879.9,0.24857937]
[1734034275466,0.7477152,3880.7,3879.9,0.24857937]
[1734034275837,0.7155,3880.7,3879.9,0.24857937]
[1734034276233,0.7155,3880.7,3879.9,1.00437937]
[1734034276446,0.7155,3880.7,3880.4,2.31929]
[1734034276766,2.57647,3881.3,3880.5,0.48050837]
[1734034276988,2.57647,3881.3,3880.2,4.8052437]
[1734034277333,0.03221196,3881.2,3880.0,3.0]
[1734034277534,2.57671,3881.0,3879.9,3.24857937]
[1734034277755,2.57671,3881.0,3879.9,5.56821937]
[1734034277934,2.57681,3880.8,3879.9,0.24857937]
[1734034278137,0.03221354,3881.0,3879.5,1.8313639]
[1734034278336,0.03221354,3881.0,3879.3,1.61443906]
[1734034278337,0.7155,3880.4,3879.3,2.31999]
[1734034278556,0.7155,3880.4,3879.4,0.89052999]
[1734034278767,0.7155,3880.4,3879.4,2.31994]
[1734034279359,0.7155,3880.4,3879.9,2.31964]
[1734034279584,0.7155,3881.0,3880.2,2.31945]
[1734034280499,0.7155,3881.5,3880.3,2.31937]
[1734034280815,0.7155,3881.5,3880.6,2.31921]
[1734034281006,0.55,3881.4,3880.7,2.31915]
[1734034281362,0.7155,3881.5,3880.3,3.0]
[1734034281563,0.7155,3881.5,3880.6,0.789]
[1734034281764,0.7155,3881.5,3881.0,2.31896]
[1734034283223,0.7155,3881.5,3881.1,2.31892]
[1734034283585,0.7155,3881.5,3881.1,2.550812]
[1734034283784,0.55,3882.3,3881.1,0.231892]
[1734034284020,3.12581,3882.3,3881.2,2.31886]
[1734034284714,3.323564,3882.2,3881.2,2.31886]
[1734034284897,3.29136,3882.2,3880.7,3.0]
[1734034285067,3.323564,3882.2,3881.0,2.31893]
[1734034286009,3.323564,3882.2,3881.7,2.31855]
[1734034286010,0.7155,3882.2,3881.7,2.31855]
[1734034286195,0.7155,3882.2,3881.9,2.31842]
[1734034286529,0.7155,3882.2,3882.0,2.31838]
[1734034286761,0.7155,3883.2,3881.8,0.231855]
[1734034287146,0.74769553,3883.2,3881.8,0.231855]
[1734034287345,0.33228255,3883.1,3882.1,2.31832]
[1734034287660,0.33228255,3883.1,3881.9,0.2550375]
[1734034287661,0.03219554,3883.0,3881.9,0.2550375]
[1734034287978,0.33228255,3883.1,3882.2,2.31824]
[1734034287979,0.55,3883.1,3882.2,2.31824]
[1734034288381,0.03219695,3883.0,3881.5,3.0]
[1734034288584,0.03219695,3883.0,3881.8,2.31851]
[1734034288585,2.60752695,3883.0,3881.8,2.31851]
[1734034288909,0.55,3883.1,3882.1,2.3183]
[1734034289105,0.7155,3883.2,3882.2,0.77895756]
[1734034289307,0.7155,3883.2,3882.2,0.7532]
[1734034289596,0.7155,3883.8,3882.4,2.31814]
[1734034289807,0.7155,3883.8,3882.5,3.0]
[1734034289960,0.7155,3883.8,3882.4,5.31814]
[1734034290309,0.7155,3883.8,3882.7,2.31791]
[1734034290596,2.57495,3883.6,3882.4,5.3181]
[1734034290754,0.03219256,3883.5,3882.4,5.9869449]
[1734034291191,2.60718256,3883.5,3882.4,5.9869449]
[1734034291551,3.2906,3883.4,3882.4,0.6688449]
[1734034291891,2.60732256,3883.3,3882.4,3.6688449]
[1734034292312,0.03219256,3883.2,3882.5,0.67402449]
[1734034292475,0.03219256,3883.2,3882.3,2.3182]
[1734034292661,0.03219256,3883.2,3882.3,5.3182]
[1734034293106,0.7155,3883.4,3882.3,5.3182]
[1734034293678,2.57531,3883.1,3882.0,0.1]
[1734034293996,0.7155,3883.0,3882.0,0.1]
[1734034294683,0.7155,3883.0,3882.1,2.31831]
[1734034294885,0.7155,3883.0,3882.2,0.318281]
[1734034296045,0.03219547,3883.5,3882.0,0.1]
[1734034296046,0.7155,3882.8,3882.0,0.1]
[1734034296226,0.55,3882.6,3882.0,0.1]
[1734034296530,2.5758,3882.3,3882.0,0.1]
[1734034297095,0.7155,3882.2,3882.0,0.1]
[1734034297417,3.29136,3882.2,3882.0,0.1]
[1734034297619,0.7155,3882.2,3882.0,0.1]
[1734034300684,0.6155,3882.2,3881.5,2.31869]
[1734034301034,0.6155,3882.2,3881.6,0.231869]
[1734034301184,0.6155,3882.2,3881.1,5.31891]
[1734034302191,0.6155,3882.2,3881.2,2.31884]
[1734034302737,0.6155,3882.2,3881.0,0.64875227]
[1734034302738,0.6155,3882.2,3881.3,2.31879]
[1734034303145,0.6155,3882.2,3881.4,2.31872]
[1734034304898,0.6155,3882.2,3881.1,3.0]
[1734034305194,0.6155,3882.2,3881.4,2.3187]
[1734034305446,0.6155,3882.2,3881.2,0.92184187]
[1734034305603,0.6155,3883.5,3881.4,0.7666]
[1734034305814,0.6155,3882.8,3881.4,6.08534]
[1734034306117,0.6155,3882.8,3881.8,2.31847]
[1734034306318,0.6155,3882.8,3881.8,2.850317]
[1734034306555,0.6155,3882.8,3881.9,2.31841]
[1734034306716,0.6155,3882.8,3881.8,0.531847]
[1734034306914,2.57559,3882.6,3881.8,0.531847]
[1734034307312,3.19097,3882.8,3881.8,0.531847]
[1734034307502,3.767598,3882.8,3881.6,2.31857]
[1734034307703,3.767598,3882.8,3881.7,2.31854]
[1734034307903,3.767598,3882.8,3881.8,2.31849]
[1734034308113,3.19097,3882.8,3881.8,2.31849]
[1734034308735,3.19097,3882.8,3881.6,2.31861]
[1734034308945,3.19097,3882.8,3881.7,2.31856]
[1734034309145,0.6155,3882.4,3881.5,2.31868]
[1734034309509,0.6155,3882.4,3881.3,3.0]
[1734034309719,0.6155,3882.4,3881.4,0.77384419]
[1734034309919,0.6155,3882.4,3881.8,2.3185]
[1734034310261,2.57515,3883.3,3882.1,2.31833]
[1734034310262,1.1655,3883.0,3882.1,2.31833]
[1734034310843,1.1655,3883.0,3882.1,2.3183]
[1734034310844,0.6155,3883.0,3882.1,2.3183]
[1734034311248,0.6155,3883.0,3881.7,2.31855]
[1734034311465,0.6155,3883.0,3882.2,2.31827]
[1734034312053,0.6155,3883.0,3882.0,2.31837]
[1734034312560,0.6155,3883.0,3882.1,2.31833]
[1734034313425,0.6155,3883.0,3882.0,3.0]
[1734034313646,0.6155,3883.0,3882.1,0.02575636]
[1734034313850,0.6155,3883.0,3882.5,2.31804]
[1734034314450,0.6155,3883.0,3882.1,0.56513714]
[1734034314759,0.6155,3883.0,3882.4,2.31815]
[1734034316067,0.6155,3883.0,3882.1,0.56513714]
[1734034316068,0.6155,3883.0,3882.5,2.31808]
[1734034316367,0.6155,3883.0,3882.6,2.31802]
[1734034316663,0.6155,3883.0,3882.7,0.231802]
[1734034318237,0.6155,3883.0,3882.1,0.56513714]
[1734034319192,0.6155,3883.0,3882.4,2.31812]
[1734034319752,0.6155,3883.0,3882.0,5.31839]
[1734034320075,0.6155,3883.0,3882.4,2.31811]
[1734034320279,0.6155,3883.0,3882.2,2.31827]
[1734034321097,0.6155,3883.0,3882.3,2.31819]
[1734034321258,0.6155,3883.0,3882.4,0.231819]
[1734034321459,0.03219543,3882.9,3882.0,2.31837]
[1734034322058,0.03219543,3882.9,3881.9,3.0]
[1734034322262,0.03219553,3882.9,3881.9,3.0]
[1734034322459,0.6155,3882.7,3881.3,0.51056337]
[1734034322708,0.6155,3882.7,3881.4,3.20788764]
[1734034323007,0.6155,3882.7,3881.5,0.50390515]
[1734034323811,3.19124,3882.4,3881.3,5.31879]
[1734034324039,3.1917,3881.7,3880.7,1.0755639]
[1734034324159,3.1917,3881.7,3880.5,0.7685]
[1734034324364,2.57626,3881.6,3880.4,2.31933]
[1734034324563,2.60846786,3881.6,3880.5,0.89013537]
[1734034324828,0.03220786,3881.6,3880.6,0.32094654]
[1734034324976,0.6155,3881.5,3880.6,0.32094654]
[1734034325181,0.6155,3881.5,3880.7,2.31916]
[1734034325378,0.6155,3881.5,3880.6,2.31921]
[1734034325909,0.6155,3881.5,3880.7,2.31916]
[1734034326264,0.6155,3881.5,3880.3,3.0]
[1734034326527,0.6155,3881.5,3881.1,2.31892]
[1734034326663,0.6155,3881.8,3881.2,0.231892]
[1734034326863,0.6155,3882.1,3881.5,2.31864]
[1734034327604,1.59289166,3883.3,3882.1,2.31829]
[1734034327605,0.6155,3883.0,3882.1,2.31829]
[1734034327827,0.6155,3883.0,3882.3,2.31818]
[1734034328469,0.6155,3883.0,3881.9,3.7845]
[1734034328667,0.6155,3883.0,3882.2,2.31825]
[1734034328873,0.6155,3883.0,3882.3,0.45447601]
[1734034329073,0.6155,3883.0,3882.3,2.77267601]
[1734034329670,0.6155,3883.0,3882.3,0.45447601]
[1734034329874,0.6155,3883.0,3881.9,4.0755639]
[1734034329875,0.03219321,3882.9,3881.9,4.0755639]
[1734034330194,0.6155,3883.0,3882.1,2.31832]
[1734034330399,0.6155,3882.6,3881.7,1.0755639]
[1734034330574,0.6155,3882.6,3881.6,6.07342]
[1734034330908,0.64769883,3882.6,3881.7,3.0]
[1734034331109,0.6155,3882.6,3881.8,0.3]
[1734034331407,0.6155,3882.6,3881.9,0.8908409]
[1734034331619,0.64769881,3882.6,3881.6,3.0]
[1734034331772,0.64769881,3882.6,3881.7,0.89098921]
[1734034331974,0.6155,3882.6,3881.6,2.31861]
[1734034332249,0.6155,3882.6,3881.5,3.0]
[1734034332250,0.6155,3882.6,3881.8,2.31849]
[1734034332422,0.6155,3882.6,3881.7,0.63941739]
[1734034332707,0.6155,3882.6,3881.8,0.89096646]
[1734034332910,0.6155,3882.6,3881.9,2.31844]
[1734034333115,0.6155,3882.6,3881.7,2.95797739]
[1734034333275,0.6155,3882.6,3881.8,1.29435181]
[1734034333476,0.6155,3882.6,3881.8,0.40335413]
[1734034333917,0.6155,3882.6,3881.8,2.72181413]
[1734034334471,0.6155,3882.6,3881.8,0.40335413]
[1734034335217,0.6155,3882.6,3881.8,2.31845]
[1734034335724,0.6155,3882.6,3881.7,0.63941739]
[1734034335890,0.6155,3882.6,3881.8,0.89098991]
[1734034337299,0.64769879,3882.6,3881.8,0.89098991]
[1734034337505,2.57578,3882.4,3881.4,1.0755639]
[1734034337704,0.6155,3882.2,3881.5,0.89122635]
[1734034337890,0.6155,3882.0,3881.0,1.0755639]
[1734034338093,0.6155,3882.0,3881.0,3.30385907]
[1734034338444,3.19149,3882.0,3881.1,2.22829517]
[1734034338741,0.6155,3881.8,3880.9,1.0755639]
[1734034338892,0.6155,3881.8,3881.0,0.32033198]
[1734034339225,0.6155,3881.8,3881.1,0.89135015]
[1734034339622,0.03220468,3881.7,3881.0,0.32033198]
[1734034339842,0.03220468,3881.7,3880.8,1.0755639]
[1734034339843,3.19164,3881.8,3880.8,1.0755639]
[1734034340041,3.19164,3881.8,3880.8,2.22842938]
[1734034340218,3.19164,3881.8,3880.9,0.89137175]
[1734034340219,3.510804,3881.8,3880.9,0.89137175]
[1734034340414,3.510804,3881.8,3880.7,5.31916]
[1734034340656,3.510804,3881.8,3880.8,2.22827863]
[1734034340859,0.934664,3881.8,3880.9,0.89131145]
[1734034341169,1.06192777,3882.4,3881.2,0.757]
[1734034341170,0.55,3882.4,3881.2,0.757]
[1734034341360,0.6155,3882.5,3881.6,2.31863]
[1734034341700,2.57572,3882.4,3881.2,4.1514139]
[1734034341901,2.57572,3882.4,3881.3,4.54668375]
[1734034342112,0.6155,3882.5,3881.4,3.20985941]
[1734034342344,1.18288664,3882.5,3881.4,2.31869]
[1734034342520,3.75855664,3882.5,3881.4,2.31869]
[1734034342849,3.19125,3882.4,3881.2,3.3944239]
[1734034343044,3.19125,3882.4,3881.3,4.54670595]
[1734034343248,0.6155,3882.4,3881.4,0.89116238]
[1734034343578,0.6155,3882.4,3881.5,3.20982858]
[1734034343721,0.6155,3882.4,3881.5,2.31866]
[1734034343906,0.6155,3882.4,3881.5,0.33942239]
[1734034344105,0.03219958,3882.3,3881.3,3.3943639]
[1734034344405,0.6155,3882.3,3881.4,0.89119117]
[1734034344611,0.6155,3882.0,3881.0,1.0755639]
[1734034344851,2.48277642,3882.3,3880.7,3.0]
[1734034344852,0.6155,3881.7,3880.7,1.0755639]
[1734034345142,0.6155,3881.7,3880.7,2.22823958]
[1734034345345,0.6155,3881.7,3880.8,4.54728958]
[1734034345549,0.6155,3881.7,3880.8,2.31905]
[1734034345841,0.6155,3881.7,3880.7,0.49182425]
[1734034346041,3.19171,3881.7,3880.8,0.89121663]
[1734034347652,3.19177,3881.6,3880.5,3.3948439]
[1734034347817,3.19177,3881.6,3880.6,5.2275452]
[1734034348019,3.19177,3881.6,3880.7,2.2275452]
[1734034348225,3.19181,3881.6,3880.5,4.55591515]
[1734034348423,3.19181,3881.6,3880.6,7.54654868]
[1734034348627,3.19181,3881.6,3880.7,0.89094347]
[1734034349348,3.19181,3881.6,3880.3,2.37693906]
[1734034349349,2.5766,3881.1,3880.3,1.0755639]
[1734034349520,2.5766,3881.1,3880.1,1.61443906]
[1734034349521,0.0322128,3881.0,3880.1,2.31952]
[1734034349723,0.55,3881.0,3880.2,0.89091243]
[1734034350057,0.55,3881.5,3879.5,1.0755639]
[1734034350058,0.6155,3880.3,3879.5,1.0755639]
[1734034350237,0.03221804,3880.2,3879.6,1.33661498]
[1734034350592,0.6155,3880.3,3879.8,2.3197]
[1734034350850,0.6123997,3880.3,3879.8,2.3197]
[1734034351034,2.57639,3881.4,3879.9,0.7762]
[1734034351263,0.03221115,3881.3,3880.0,3.0]
[1734034351436,0.03221115,3881.3,3879.7,5.31976]
[1734034351627,0.57875801,3881.3,3879.8,3.73051854]
[1734034352228,2.57672,3880.9,3879.8,3.73051854]
[1734034352578,0.57875801,3881.3,3879.8,0.73051854]
[1734034352579,0.55,3881.2,3879.8,0.73051854]
[1734034352736,0.55,3881.2,3880.0,2.31958]
[1734034353087,3.15875403,3881.2,3879.8,0.73051854]
[1734034353237,0.55,3881.0,3879.9,3.386418]
[1734034353654,0.6124,3880.9,3879.9,0.386418]
[1734034353856,0.03221403,3880.8,3879.9,0.386418]
[1734034354079,3.18915,3880.9,3879.9,0.386418]
[1734034354489,3.18915,3880.9,3879.6,0.1336615]
[1734034354490,3.18915,3880.9,3879.7,2.31971]
[1734034355379,2.57679,3880.8,3879.7,2.31971]
[1734034355551,2.60900402,3880.8,3879.7,2.31971]
[1734034356210,2.60900402,3880.8,3879.7,2.316889]
[1734034356354,2.57679,3880.8,3879.7,2.316889]
[1734034356700,2.57679,3880.8,3879.8,3.0]
[1734034357208,0.6124,3880.9,3879.8,3.0]
[1734034357380,0.6124,3881.9,3880.6,2.31922]
[1734034357710,0.6124,3881.9,3880.5,0.02576731]
[1734034357839,0.6124,3881.6,3880.4,5.31933]
[1734034358045,0.6124,3881.6,3880.5,3.610433]
[1734034358275,0.6124,3881.6,3880.5,0.610433]
[1734034358476,0.6124,3881.6,3880.8,2.3191]
[1734034358720,0.6124,3881.6,3880.6,5.31922]
[1734034358870,0.6124,3881.6,3880.7,2.31916]
[1734034359067,0.6124,3881.6,3880.8,0.5929593]
[1734034359879,0.6124,3881.6,3880.6,3.0]
[1734034360086,0.03220796,3881.5,3880.5,0.610433]
[1734034360410,2.60852796,3881.5,3880.5,0.610433]
[1734034360699,0.6124,3881.6,3880.6,2.31918]
[1734034360880,0.6124,3881.6,3880.6,5.31918]
[1734034361063,0.6124,3881.6,3880.7,0.45329815]
[1734034361265,0.6124,3881.6,3880.6,2.31917]
[1734034361483,0.6124,3881.6,3880.5,3.610433]
[1734034362069,3.22089919,3881.6,3880.5,3.610433]
[1734034362251,3.18869,3881.6,3880.5,3.610433]
[1734034362673,0.03220918,3881.5,3880.5,3.610433]
[1734034362873,3.18869,3881.6,3880.6,0.6714773]
[1734034363175,0.6124,3881.6,3880.6,0.6714773]
[1734034363376,0.6124,3881.6,3880.5,2.31927]
[1734034363909,3.18868,3881.6,3880.4,5.31934]
[1734034364232,3.18868,3881.6,3880.3,0.785]
[1734034364438,0.6124,3881.6,3880.5,2.31927]
[1734034364721,0.6124,3881.6,3880.4,3.0]
[1734034364955,3.18866,3881.6,3880.4,3.67732304]
[1734034365079,3.18866,3881.6,3880.4,2.99666304]
[1734034365428,3.18866,3881.6,3880.5,5.31928]
[1734034365980,0.6124,3881.6,3880.6,2.31922]
[1734034366176,0.6124,3881.6,3880.4,0.67732304]
[1734034366415,0.6124,3881.6,3880.4,2.99665304]
[1734034366723,0.6124,3881.6,3880.5,3.6781653]
[1734034367211,3.18867,3881.6,3880.5,3.6781653]
[1734034367411,0.55,3881.1,3879.9,0.7608]
[1734034367615,0.64461392,3881.0,3879.5,1.8363639]
[1734034367779,0.64461392,3881.0,3879.6,2.22406212]
[1734034367979,0.64461392,3881.0,3880.0,2.31957]
[1734034367980,0.6124,3881.0,3880.0,2.31957]
[1734034368173,0.6124,3881.0,3879.7,3.80420446]
[1734034368174,0.6124,3881.0,3879.7,2.88881902]
[1734034368485,0.6124,3881.0,3879.9,3.0]
[1734034368713,0.6124,3881.0,3879.8,5.3197]
[1734034368909,0.6124,3881.0,3879.9,2.31962]
[1734034369090,0.6124,3881.0,3879.9,2.59218626]
[1734034369277,0.6124,3881.0,3880.1,2.31951]
[1734034369899,0.6124,3881.0,3879.9,2.59220626]
[1734034370429,0.6124,3881.0,3880.1,2.3195]
[1734034370625,0.6124,3881.0,3879.9,0.29833734]
[1734034370626,0.6124,3881.0,3880.0,3.0]
[1734034370811,0.6124,3881.0,3879.9,2.59220626]
[1734034371126,2.60898385,3880.9,3879.9,0.27256626]
[1734034371313,0.37713839,3880.8,3879.7,3.4060426]
[1734034371515,0.37713839,3880.8,3879.7,5.7258026]
[1734034372103,0.37713839,3880.8,3879.8,5.3197]
[1734034372427,0.37713839,3880.8,3879.9,2.31964]
[1734034372729,0.6124,3881.0,3880.2,2.31946]
[1734034373293,0.6124,3881.0,3880.0,2.31958]
[1734034375616,0.6124,3881.0,3880.3,2.3194]
[1734034376141,4.57490619,3882.2,3880.6,2.31917]
[1734034376142,0.6124,3881.7,3880.6,2.31917]
[1734034377637,0.55,3881.6,3880.6,2.31917]
[1734034377833,0.55,3881.6,3880.7,0.28671241]
[1734034378036,3.12626,3881.6,3880.7,0.28671241]
[1734034378253,3.12626,3881.6,3880.5,2.31928]
[1734034378467,0.55,3881.6,3880.5,2.31928]
[1734034378849,0.55,3881.6,3880.5,2.31923]
[1734034379048,0.55,3881.6,3880.2,5.39059361]
[1734034379249,0.55,3881.6,3880.5,2.31923]
[1734034379576,0.6124,3881.5,3880.6,0.45449559]
[1734034379887,0.6124,3881.2,3880.2,2.31946]
[1734034380334,0.6124,3881.2,3880.0,3.0]
[1734034380540,0.6124,3881.2,3880.3,3.0]
[1734034380772,0.6124,3881.2,3880.4,0.89053494]
[1734034380944,0.6124,3881.2,3880.3,2.3194]
[1734034381131,0.6124,3881.2,3880.3,2.95889639]
[1734034381358,1.642602,3882.2,3880.6,3.0]
[1734034381571,1.642602,3882.2,3881.3,2.3188]
[1734034381572,0.6124,3882.2,3881.3,2.3188]
[1734034381904,0.6124,3882.0,3880.5,2.69000296]
[1734034382063,0.6124,3881.7,3881.1,3.10511]
[1734034382265,0.6124,3881.7,3881.2,0.310511]
[1734034382792,0.6124,3881.7,3880.6,1.8595639]
[1734034382793,0.6124,3881.7,3880.7,2.31916]
[1734034383102,0.6124,3881.4,3880.2,1.0755639]
[1734034383271,0.6124,3881.4,3879.9,1.0755639]
[1734034383272,0.6124,3880.8,3879.9,1.0755639]
[1734034383474,2.57644,3881.4,3879.9,0.89116974]
[1734034383475,2.57699,3880.5,3879.9,0.89116974]
[1734034383675,0.03221326,3880.7,3879.9,1.33675461]
[1734034383676,0.64461632,3880.4,3879.9,1.33675461]
[1734034383891,0.6124,3880.2,3879.6,1.61443906]
[1734034384210,0.6124,3880.2,3879.2,2.32005]
[1734034384514,0.6124,3880.2,3879.3,2.22796028]
[1734034384805,0.6124,3880.9,3880.2,2.31946]
[1734034385161,0.6124,3880.9,3880.6,2.31921]
[1734034385401,0.6124,3880.9,3880.2,1.0755639]
[1734034385707,0.6124,3880.9,3880.3,0.89104074]
[1734034386012,0.6124,3880.9,3880.3,3.21044074]
[1734034386185,0.6124,3880.9,3880.3,2.3194]
[1734034386404,0.6124,3880.9,3880.4,0.89103004]
[1734034386684,0.6124,3880.9,3880.3,2.3194]
[1734034387213,0.6124,3880.9,3880.4,0.89104914]
[1734034387984,0.6124,3880.9,3880.3,2.3194]
[1734034388321,0.6124,3880.9,3880.4,0.89112331]
[1734034388478,0.6124,3880.9,3880.1,1.0755639]
[1734034388816,0.6124,3880.9,3880.1,2.22825216]
[1734034389022,0.6124,3880.9,3880.0,4.0755639]
[1734034389023,0.6124,3880.9,3880.2,0.89130086]
[1734034389219,0.6124,3880.9,3879.9,2.31959]
[1734034389220,0.6124,3880.9,3879.9,6.3951539]
[1734034389408,0.6124,3880.9,3880.0,2.22877125]
[1734034389608,0.03221321,3880.8,3880.0,2.22877125]
[1734034389819,0.03221321,3880.8,3879.8,1.0755639]
[1734034390121,0.6124,3880.9,3879.9,5.31963]
[1734034390419,0.03221319,3880.8,3880.0,2.22883668]
[1734034390740,0.6124,3880.6,3879.8,1.0755639]
[1734034391024,0.6124,3880.6,3879.8,2.22955835]
[1734034391218,0.6124,3880.6,3879.9,5.22955835]
[1734034391528,0.6124,3880.6,3880.0,0.89182334]
[1734034391699,0.931331,3880.6,3879.7,4.0755639]
[1734034391903,0.931331,3880.6,3879.8,2.22962988]
[1734034392114,2.57706,3880.4,3879.9,0.89185195]
[1734034392428,0.931331,3880.6,3879.3,4.0755639]
[1734034392429,0.6124,3880.2,3879.3,4.0755639]
[1734034392628,2.5774,3879.9,3879.4,0.89188115]
[1734034392835,0.35442317,3879.8,3879.0,1.0755639]
[1734034393146,0.32220204,3879.8,3879.0,1.0755639]
[1734034393304,0.32220204,3879.8,3879.1,2.22990103]
[1734034393506,0.6124,3880.0,3879.2,2.22958839]
[1734034393853,0.6124,3880.0,3879.4,2.31992]
[1734034394153,0.6124,3880.5,3879.7,2.3197]
[1734034394297,0.55,3880.4,3879.6,3.0]
[1734034394500,0.58221563,3880.4,3879.3,4.0755639]
[1734034394833,0.55,3880.4,3879.4,4.54905058]
[1734034395006,0.55,3880.4,3879.5,2.22909253]
[1734034395207,0.55,3880.4,3879.3,2.34011438]
[1734034395407,0.55,3880.4,3879.5,2.31983]
[1734034395638,0.55,3880.4,3879.6,2.22892106]
[1734034395839,0.55,3880.4,3879.5,2.31983]
[1734034395840,0.58221819,3880.4,3879.5,2.31983]
[1734034396038,0.58221819,3880.4,3879.6,0.89155281]
[1734034396423,0.58221819,3880.4,3879.5,2.31983]
[1734034396614,0.55,3880.4,3879.6,0.8915262]
[1734034397001,0.58221819,3880.4,3879.6,0.8915262]
[1734034397198,0.92715382,3880.4,3879.2,4.0755639]
[1734034397437,2.57722,3880.2,3879.3,2.22864176]
[1734034397640,1.1624,3880.1,3878.9,4.0755639]
[1734034397844,1.1624,3880.1,3879.0,2.22886722]
[1734034397845,0.6124,3879.8,3879.0,2.22886722]
[1734034398002,0.64462108,3879.8,3879.1,0.89154689]
[1734034398205,0.64462108,3879.8,3878.8,5.32029]
[1734034398206,0.6124,3879.8,3878.8,6.3958539]
[1734034398558,0.6124,3879.8,3879.2,2.32006]
[1734034399061,0.6124,3879.8,3879.3,0.89129381]
[1734034399261,0.6124,3879.8,3879.2,2.32006]
[1734034399712,0.6124,3879.8,3878.9,4.0755639]
[1734034399918,0.6124,3879.8,3879.0,5.22802463]
[1734034400113,0.6124,3879.8,3879.1,0.89120985]
[1734034400329,0.6124,3879.8,3879.0,2.32017]
[1734034400530,0.6124,3879.8,3878.8,2.42204938]
[1734034400739,0.6124,3879.8,3879.1,2.3201]
[1734034400956,0.6124,3879.8,3878.9,5.02749039]
[1734034401281,0.6124,3880.7,3879.4,2.48277642]
[1734034401483,3.0,3881.2,3879.5,0.89102877]
[1734034401484,0.6124,3880.5,3879.5,0.89102877]
[1734034401616,0.03221706,3880.4,3879.4,2.31989]
[1734034401949,0.6124,3880.5,3879.6,2.31982]
[1734034402150,0.6124,3880.5,3879.5,3.0]